fUST/lending_fUST_20250912
["ID","MTS","AMOUNT","RATE_DAILY","PERIOD"]
[385058117,1757657432619,-480.0,0.00013816,2]
[385058120,1757657432629,-480.0,0.00013816,2]
[385058121,1757657432637,-629.2,0.00013816,2]
[385058123,1757657432648,-480.0,0.00013816,2]
[385058125,1757657432657,-500.0,0.00013816,2]
[385058127,1757657432666,-488.09298535,0.00013816,2]
[385058129,1757657432675,-478.5010477,0.00013816,2]
[385058134,1757657432707,-1.4989523,0.00013816,2]
[385058136,1757657432716,-480.0,0.00013816,2]
[385058138,1757657432725,-508.66,0.00013816,2]
[385058140,1757657432734,-480.0,0.00013816,2]
[385058142,1757657432743,-482.03187421,0.00013816,2]
[385058144,1757657432752,-480.0,0.00013816,2]
[385058146,1757657432761,-480.0,0.00013816,2]
[385058148,1757657432770,-480.0,0.00013816,2]
[385058150,1757657432779,-481.09966541,0.00013816,2]
[385058152,1757657432787,-232.71105863,0.00013816,2]
[385058190,1757657438454,-602.98,0.00013815,2]
[385058191,1757657438463,-247.28894137,0.00013816,2]
[385058192,1757657438473,-484.25320579,0.00013816,2]
[385058193,1757657438483,-481.41306662,0.00013816,2]
[385058195,1757657438491,-480.0,0.00013816,2]
[385058196,1757657438501,-432.33482816,0.00013816,2]
[385058197,1757657438510,-480.0,0.00013816,2]
[385058198,1757657438519,-480.0,0.00013816,2]
[385058199,1757657438529,-311.68589905,0.00013816,2]
[385058200,1757657438540,-168.31410095,0.00013816,2]
[385058201,1757657438549,-480.0,0.00013816,2]
[385058202,1757657438558,-481.68172908,0.00013816,2]
[385058203,1757657438567,-484.77429846,0.00013816,2]
[385058204,1757657438581,-480.0,0.00013816,2]
[385058205,1757657438590,-480.0,0.00013816,2]
[385058206,1757657438599,-463.19713489,0.00013816,2]
[385058207,1757657438609,-480.0,0.00013816,2]
[385058208,1757657438618,-480.0,0.00013816,2]
[385058209,1757657438627,-480.0,0.00013816,2]
[385058210,1757657438637,-487.85753651,0.00013816,2]
[385058211,1757657438646,-480.0,0.00013816,2]
[385058212,1757657438655,-486.95830629,0.00013816,2]
[385058213,1757657438664,-2955.56,0.00013816,2]
[385058214,1757657438674,-480.0,0.00013816,2]
[385058215,1757657438683,-481.45269427,0.00013816,2]
[385058216,1757657438692,-480.0,0.00013816,2]
[385058217,1757657438701,-488.24591542,0.00013816,2]
[385058218,1757657438710,-537.82081092,0.00013816,2]
[385058219,1757657438719,-481.31450981,0.00013816,2]
[385058220,1757657438729,-480.0,0.00013816,2]
[385058221,1757657438738,-480.0,0.00013816,2]
[385058222,1757657438747,-629.54057354,0.00013816,2]
[385058223,1757657438756,-480.0,0.00013816,2]
[385058224,1757657438765,-480.0,0.00013816,2]
[385058225,1757657438774,-480.0,0.00013816,2]
[385058226,1757657438783,-480.0,0.00013816,2]
[385058227,1757657438792,-480.0,0.00013816,2]
[385058228,1757657438801,-388.75305366,0.00013816,2]
[385058229,1757657438810,-480.0,0.00013816,2]
[385058230,1757657438819,-483.50769552,0.00013816,2]
[385058231,1757657438829,-480.0,0.00013816,2]
[385058232,1757657438837,-521.61568342,0.00013816,2]
[385058233,1757657438847,-480.0,0.00013816,2]
[385058234,1757657438856,-483.35175481,0.00013816,2]
[385058235,1757657438865,-203.80194275,0.00013816,2]
[385058236,1757657438874,-480.0,0.00013816,2]
[385058237,1757657438884,-480.0,0.00013816,2]
[385058238,1757657438893,-582.18004331,0.00013816,2]
[385058239,1757657438902,-487.09206768,0.00013816,2]
[385058240,1757657438912,-1404.27,0.00013816,2]
[385058241,1757657438921,-480.0,0.00013816,2]
[385058242,1757657438930,-488.2183371,0.00013816,2]
[385058243,1757657438940,-531.49748548,0.00013816,2]
[385058244,1757657438949,-480.0,0.00013816,2]
[385058245,1757657438958,-480.0,0.00013816,2]
[385058246,1757657438972,-480.0,0.00013816,2]
[385058247,1757657438982,-480.0,0.00013816,2]
[385058248,1757657438991,-482.55263004,0.00013816,2]
[385058249,1757657439000,-480.0,0.00013816,2]
[385058250,1757657439010,-485.48951232,0.00013816,2]
[385058251,1757657439019,-480.0,0.00013816,2]
[385058252,1757657439029,-377.66023961,0.00013816,2]
[385058253,1757657439038,-480.0,0.00013817,2]
[385058254,1757657439047,-480.0,0.00013817,2]
[385058255,1757657439057,-480.0,0.00013817,2]
[385058256,1757657439066,-480.0,0.00013817,2]
[385058257,1757657439075,-480.0,0.00013817,2]
[385058258,1757657439085,-161.1710708,0.00013817,2]
[385058259,1757657439095,-480.0,0.00013817,2]
[385058260,1757657439105,-480.0,0.00013817,2]
[385058261,1757657439114,-480.0,0.00013817,2]
[385058262,1757657439123,-480.0,0.00013817,2]
[385058263,1757657439133,-480.0,0.00013817,2]
[385058264,1757657439143,-480.0,0.00013817,2]
[385058265,1757657439152,-480.0,0.00013817,2]
[385058266,1757657439161,-480.0,0.00013817,2]
[385058267,1757657439171,-480.0,0.00013817,2]
[385058268,1757657439180,-480.0,0.00013817,2]
[385058269,1757657439303,-480.0,0.00013817,2]
[385058270,1757657439314,-174.05633059,0.00013817,2]
[385058271,1757657439337,-305.94366941,0.00013817,2]
[385058272,1757657439347,-480.0,0.00013817,2]
[385058273,1757657439357,-480.0,0.00013817,2]
[385058274,1757657439366,-480.0,0.00013817,2]
[385058275,1757657439376,-480.0,0.00013817,2]
[385058276,1757657439387,-234.78535291,0.00013817,2]
[385058286,1757657440232,-429.21968564,0.00013816,2]
[385058287,1757657440288,-50.78031436,0.00013816,2]
[385058288,1757657440298,-245.21464709,0.00013817,2]
[385058289,1757657440307,-480.0,0.00013817,2]
[385058290,1757657440316,-480.0,0.00013817,2]
[385058291,1757657440326,-502.59010221,0.00013817,2]
[385058292,1757657440335,-480.0,0.00013817,2]
[385058293,1757657440345,-38.06493637,0.00013817,2]
[385058304,1757657445246,-320.76165107,0.00013816,2]
[385058305,1757657445263,-159.23834893,0.00013816,2]
[385058307,1757657445273,-441.93506363,0.00013817,2]
[385058308,1757657445283,-18.49998102,0.00013817,2]
[385058317,1757657445911,1077.44932586,0.00013679,2]
[385058321,1757657446381,-461.50001898,0.00013817,2]
[385058322,1757657446391,-255.03929384,0.00013817,2]
[385058323,1757657446403,-224.96070616,0.00013817,2]
[385058324,1757657446413,-480.0,0.00013817,2]
[385058325,1757657446422,-480.0,0.00013817,2]
[385058326,1757657446432,-480.0,0.00013817,2]
[385058327,1757657446441,-480.0,0.00013817,2]
[385058328,1757657446450,-480.0,0.00013817,2]
[385058329,1757657446460,-480.0,0.00013817,2]
[385058330,1757657446469,-490.68032206,0.00013817,2]
[385058331,1757657446478,-480.0,0.00013817,2]
[385058332,1757657446487,-480.0,0.00013817,2]
[385058333,1757657446497,-187.56951782,0.00013817,2]
[385058334,1757657446506,-178.10630276,0.00013817,2]
[385058335,1757657446515,-480.0,0.00013818,2]
[385058336,1757657446524,-244.42657025,0.00013818,2]
[385058337,1757657446534,-480.0,0.00013818,2]
[385058338,1757657446543,-480.0,0.00013818,2]
[385058339,1757657446553,-480.0,0.00013818,2]
[385058340,1757657446562,-480.0,0.00013818,2]
[385058341,1757657446571,-481.97384913,0.00013818,2]
[385058342,1757657446580,-480.0,0.00013818,2]
[385058343,1757657446591,-481.94779864,0.00013818,2]
[385058344,1757657446602,-80.33493338,0.00013818,2]
[385058345,1757657449112,683.5,0.00012329,2]
[385058346,1757657454026,480.0,0.00013677,2]
[385058350,1757657469911,300.0,0.00013676,2]
[385058351,1757657478828,300.0,0.00013676,2]
[385058352,1757657494870,300.0,0.00013676,2]
[385058353,1757657502785,300.0,0.00013676,2]
[385058354,1757657519755,300.0,0.00013676,2]
[385058355,1757657528322,300.0,0.00013676,2]
[385058356,1757657543804,503.0,0.00013676,2]
[385058357,1757657552042,503.0,0.00013676,2]
[385058358,1757657569627,503.0,0.00013676,2]
[385058359,1757657577637,503.0,0.00013676,2]
[385058360,1757657585723,2141.03489954,0.00013717,2]
[385058361,1757657585750,10000.01,0.00013717,2]
[385058362,1757657585776,10000.01,0.00013717,2]
[385058363,1757657585802,1469.23441022,0.00013717,2]
[385058364,1757657585827,10000.01,0.00013717,2]
[385058365,1757657585851,10000.01,0.00013717,2]
[385058366,1757657585876,10000.01,0.00013717,2]
[385058367,1757657585902,10000.01,0.00013717,2]
[385058368,1757657585926,10000.01,0.00013717,2]
[385058369,1757657585951,10000.01,0.00013717,2]
[385058370,1757657585976,10000.01,0.00013717,2]
[385058371,1757657586000,10000.01,0.00013717,2]
[385058372,1757657586030,10000.01,0.00013717,2]
[385058373,1757657586055,10000.01,0.00013717,2]
[385058374,1757657586080,10000.01,0.00013717,2]
[385058375,1757657586104,10000.01,0.00013717,2]
[385058376,1757657586130,10000.01,0.00013717,2]
[385058377,1757657586155,10000.01,0.00013717,2]
[385058378,1757657586179,10000.01,0.00013717,2]
[385058379,1757657586203,10000.01,0.00013717,2]
[385058380,1757657586227,10000.01,0.00013717,2]
[385058381,1757657586251,10000.01,0.00013717,2]
[385058382,1757657586276,10000.01,0.00013717,2]
[385058383,1757657586301,10000.01,0.00013717,2]
[385058384,1757657586327,10000.01,0.00013717,2]
[385058385,1757657586351,10000.01,0.00013717,2]
[385058386,1757657586375,10000.01,0.00013717,2]
[385058387,1757657586399,10000.01,0.00013717,2]
[385058388,1757657586424,10000.01,0.00013717,2]
[385058389,1757657586449,10000.01,0.00013717,2]
[385058390,1757657586475,10000.01,0.00013717,2]
[385058391,1757657586500,10000.01,0.00013717,2]
[385058392,1757657586526,10000.01,0.00013717,2]
[385058393,1757657586551,10000.01,0.00013717,2]
[385058394,1757657586576,10000.01,0.00013717,2]
[385058395,1757657586601,10000.01,0.00013717,2]
[385058396,1757657586627,10000.01,0.00013717,2]
[385058397,1757657586651,10000.01,0.00013717,2]
[385058398,1757657586678,6389.37069024,0.00013717,2]
[385058399,1757657589534,-203.0,0.00013814,2]
[385058400,1757657589564,-300.0,0.00013814,2]
[385058401,1757657589596,-480.0,0.00013815,2]
[385058402,1757657589626,-480.0,0.00013815,2]
[385058403,1757657589656,-480.0,0.00013815,2]
[385058404,1757657589690,-486.3,0.00013815,2]
[385058405,1757657589721,-480.0,0.00013815,2]
[385058406,1757657589753,-480.0,0.00013815,2]
[385058407,1757657589788,-488.34459144,0.00013815,2]
[385058408,1757657589817,-483.43614104,0.00013815,2]
[385058409,1757657589849,-480.0,0.00013815,2]
[385058410,1757657590880,-480.0,0.00013815,2]
[385058411,1757657590911,-480.0,0.00013815,2]
[385058412,1757657590942,-482.36793852,0.00013815,2]
[385058413,1757657590972,-480.0,0.00013815,2]
[385058414,1757657591001,-482.54017041,0.00013815,2]
[385058415,1757657591036,-480.0,0.00013815,2]
[385058416,1757657591066,-480.0,0.00013815,2]
[385058417,1757657591098,-480.0,0.00013816,2]
[385058418,1757657591135,-480.0,0.00013816,2]
[385058419,1757657591165,-480.0,0.00013816,2]
[385058420,1757657591446,-480.0,0.00013816,2]
[385058421,1757657591481,-480.0,0.00013816,2]
[385058422,1757657591517,-1475.93,0.00013816,2]
[385058423,1757657591549,-480.0,0.00013816,2]
[385058424,1757657591582,-480.0,0.00013816,2]
[385058425,1757657591615,-480.0,0.00013816,2]
[385058426,1757657591645,-480.0,0.00013816,2]
[385058427,1757657591675,-480.0,0.00013816,2]
[385058428,1757657592283,-480.0,0.00013816,2]
[385058429,1757657592318,-480.0,0.00013816,2]
[385058430,1757657592351,-480.0,0.00013816,2]
[385058431,1757657592386,-480.0,0.00013816,2]
[385058432,1757657592419,-480.0,0.00013816,2]
[385058433,1757657592452,-480.0,0.00013816,2]
[385058434,1757657592484,-348.58897288,0.00013816,2]
[385058435,1757657592516,-480.74820718,0.00013816,2]
[385058436,1757657592548,-480.0,0.00013816,2]
[385058437,1757657592582,-483.40890707,0.00013816,2]
[385058438,1757657592815,-856.81,0.00013816,2]
[385058439,1757657592845,-480.0,0.00013816,2]
[385058440,1757657592875,-480.0,0.00013816,2]
[385058441,1757657592905,-399.66506662,0.00013816,2]
[385058442,1757657592933,-480.0,0.00013816,2]
[385058443,1757657592962,-480.0,0.00013816,2]
[385058444,1757657592991,-482.06602762,0.00013816,2]
[385058445,1757657593024,-500.0,0.00013816,2]
[385058446,1757657593055,-500.0,0.00013816,2]
[385058447,1757657593087,-182.92781152,0.00013816,2]
[385058448,1757657593376,-317.07218848,0.00013816,2]
[385058449,1757657593407,-500.0,0.00013816,2]
[385058450,1757657593440,-500.0,0.00013816,2]
[385058451,1757657593471,-500.0,0.00013816,2]
[385058452,1757657593504,-348.99803211,0.00013816,2]
[385058453,1757657593536,-490.3189674,0.00013816,2]
[385058454,1757657593568,-500.0,0.00013816,2]
[385058455,1757657593612,-500.0,0.00013816,2]
[385058456,1757657593650,-500.0,0.00013816,2]
[385058457,1757657593682,-483.67776557,0.00013816,2]
[385058458,1757657593726,-238.85804784,0.00013816,2]
[385058459,1757657594116,-242.1599972,0.00013816,2]
[385058460,1757657594146,-483.45336382,0.00013816,2]
[385058461,1757657594176,-484.97151392,0.00013816,2]
[385058462,1757657594205,-480.0,0.00013816,2]
[385058463,1757657594236,-480.0,0.00013816,2]
[385058464,1757657594264,-483.64241548,0.00013816,2]
[385058465,1757657594293,-229.49137574,0.00013816,2]
[385058466,1757657594321,-480.0,0.00013816,2]
[385058467,1757657594350,-480.0,0.00013816,2]
[385058468,1757657594382,-597.11266768,0.00013816,2]
[385058469,1757657594498,-1118.34733232,0.00013816,2]
[385058470,1757657594528,-480.0,0.00013816,2]
[385058471,1757657595614,-487.38707966,0.00013815,2]
[385058472,1757657596920,3364.90810893,0.00013677,2]
[385058473,1757657602676,485.39048223,0.00013677,2]
[385058474,1757657618230,1929.7446933,0.00013677,2]
[385058475,1757657626938,923.52561112,0.00013677,2]
[385058478,1757657642681,2409.7446933,0.00013677,2]
[385058481,1757657656928,886.69641112,0.00013714,2]
[385058482,1757657656952,10000.01,0.00013714,2]
[385058483,1757657656978,7054.54272726,0.00013714,2]
[385058485,1757657666175,300.0,0.00013676,2]
[385058487,1757657690209,300.0,0.00013676,2]
[385058488,1757657692560,592.92008541,0.00013551,2]
[385058489,1757657695141,1752.54718733,0.00013551,2]
[385058490,1757657695163,619.13315433,0.00013551,2]
[385058491,1757657697381,5336.28076873,0.00013551,2]
[385058492,1757657703299,4044.59607694,0.000137,2]
[385058493,1757657703324,10000.01,0.000137,2]
[385058494,1757657703348,1222.96579553,0.000137,2]
[385058495,1757657713673,468.95278124,0.00013676,2]
[385058497,1757657729503,8308.09142323,0.00013717,2]
[385058498,1757657729530,10000.01,0.00013717,2]
[385058499,1757657729556,10000.01,0.00013717,2]
[385058500,1757657729583,10000.01,0.00013717,2]
[385058501,1757657729610,10000.01,0.00013717,2]
[385058502,1757657729638,10000.01,0.00013717,2]
[385058503,1757657729666,10000.01,0.00013717,2]
[385058504,1757657729692,10000.01,0.00013717,2]
[385058505,1757657729718,10000.01,0.00013717,2]
[385058506,1757657729744,10000.01,0.00013717,2]
[385058507,1757657729771,10000.01,0.00013717,2]
[385058508,1757657729798,10000.01,0.00013717,2]
[385058509,1757657729826,10000.01,0.00013717,2]
[385058510,1757657729853,4774.87943604,0.00013717,2]
[385058511,1757657729900,-2030.296672,0.0001381,2]
[385058512,1757657729932,-1200.0,0.00013814,2]
[385058513,1757657729963,-300.0,0.00013814,2]
[385058514,1757657729993,-485.39048223,0.00013815,2]
[385058515,1757657730026,-480.0,0.00013815,2]
[385058516,1757657730057,-480.0,0.00013815,2]
[385058517,1757657730956,-484.35421107,0.00013815,2]
[385058518,1757657730988,-480.0,0.00013815,2]
[385058519,1757657731019,-485.94190419,0.00013815,2]
[385058520,1757657731050,-504.81780725,0.00013815,2]
[385058521,1757657731082,-450.0247911,0.00013815,2]
[385058522,1757657731122,-480.0,0.00013815,2]
[385058523,1757657731156,-480.0,0.00013815,2]
[385058524,1757657731190,-480.0,0.00013815,2]
[385058525,1757657731224,-480.0,0.00013815,2]
[385058526,1757657731259,-496.76054226,0.00013815,2]
[385058527,1757657732168,-480.0,0.00013815,2]
[385058528,1757657732205,-480.0,0.00013815,2]
[385058529,1757657732240,-483.40728398,0.00013815,2]
[385058530,1757657732275,-480.0,0.00013815,2]
[385058531,1757657732310,-480.0,0.00013815,2]
[385058532,1757657732345,-480.0,0.00013815,2]
[385058533,1757657732380,-480.0,0.00013815,2]
[385058534,1757657732414,-480.0,0.00013815,2]
[385058535,1757657732448,-480.0,0.00013815,2]
[385058536,1757657732482,-483.84703971,0.00013815,2]
[385058537,1757657732622,-480.0,0.00013815,2]
[385058538,1757657732657,-480.0,0.00013815,2]
[385058539,1757657732690,-485.00265771,0.00013815,2]
[385058540,1757657732725,-507.17,0.00013815,2]
[385058541,1757657732758,-480.0,0.00013815,2]
[385058542,1757657732793,-487.77906598,0.00013815,2]
[385058543,1757657732829,-480.0,0.00013816,2]
[385058544,1757657732867,-480.0,0.00013816,2]
[385058545,1757657732901,-480.0,0.00013816,2]
[385058546,1757657732935,-483.10447544,0.00013816,2]
[385058547,1757657732987,-480.0,0.00013816,2]
[385058548,1757657733019,-480.0,0.00013816,2]
[385058549,1757657733052,-480.0,0.00013816,2]
[385058550,1757657733091,-2021.55,0.00013816,2]
[385058551,1757657735284,-3076.91,0.00013816,2]
[385058552,1757657735314,-482.18578193,0.00013816,2]
[385058553,1757657735344,-480.0,0.00013816,2]
[385058554,1757657735377,-480.0,0.00013816,2]
[385058555,1757657735408,-480.0,0.00013816,2]
[385058556,1757657833741,10000.01,0.0001333,2]
[385058557,1757657833764,10000.01,0.0001333,2]
[385058558,1757657833786,5225.13056396,0.0001333,2]
[385058559,1757657833809,10000.01,0.0001333,2]
[385058560,1757657833832,10000.01,0.0001333,2]
[385058561,1757657833855,10000.01,0.0001333,2]
[385058562,1757657833876,10000.01,0.0001333,2]
[385058563,1757657833898,10000.01,0.0001333,2]
[385058564,1757657833922,10000.01,0.0001333,2]
[385058565,1757657833946,10000.01,0.0001333,2]
[385058566,1757657833969,2823.74443386,0.0001333,2]
[385058567,1757657834849,-300.0,0.00013814,2]
[385058568,1757657834880,-485.14174075,0.00013815,2]
[385058569,1757657834910,-482.56581299,0.00013815,2]
[385058570,1757657834943,-481.90804806,0.00013815,2]
[385058571,1757657834974,-480.0,0.00013815,2]
[385058572,1757657835005,-333.98788163,0.00013815,2]
[385058573,1757657835037,-480.0,0.00013815,2]
[385058574,1757657835067,-487.12324655,0.00013815,2]
[385058575,1757657835098,-480.0,0.00013815,2]
[385058576,1757657835129,-396.3320788,0.00013815,2]
[385058577,1757657835160,-480.0,0.00013815,2]
[385058578,1757657836397,-484.03560337,0.00013815,2]
[385058579,1757657836426,-480.0,0.00013815,2]
[385058580,1757657836455,-501.58141793,0.00013815,2]
[385058581,1757657836485,-482.08567681,0.00013815,2]
[385058582,1757657836515,-480.0,0.00013815,2]
[385058583,1757657836544,-481.86527828,0.00013815,2]
[385058584,1757657836574,-489.31667598,0.00013815,2]
[385058585,1757657836604,-480.0,0.00013815,2]
[385058586,1757657836633,-489.35651521,0.00013815,2]
[385058587,1757657836663,-481.42566954,0.00013815,2]
[385058588,1757657836713,-480.0,0.00013815,2]
[385058589,1757657836744,-480.0,0.00013815,2]
[385058590,1757657836777,-480.0,0.00013815,2]
[385058591,1757657836806,-480.0,0.00013815,2]
[385058592,1757657836837,-480.0,0.00013815,2]
[385058593,1757657836867,-480.0,0.00013815,2]
[385058594,1757657836896,-482.39378484,0.00013815,2]
[385058595,1757657836930,-205.44422579,0.00013815,2]
[385058596,1757657836962,-387.8132186,0.00013815,2]
[385058597,1757657836993,-480.0,0.00013815,2]
[385058598,1757657837024,-368.75887402,0.00013815,2]
[385058599,1757657837064,-480.0,0.00013815,2]
[385058600,1757657837095,-305.5094072,0.00013815,2]
[385058601,1757657837125,-480.0,0.00013815,2]
[385058602,1757657837154,-480.67706016,0.00013815,2]
[385058603,1757657837184,-480.0,0.00013815,2]
[385058604,1757657837211,-480.0,0.00013815,2]
[385058605,1757657837241,-480.0,0.00013815,2]
[385058606,1757657837271,-480.0,0.00013815,2]
[385058607,1757657837299,-480.0,0.00013815,2]
[385058608,1757657837329,-480.0,0.00013815,2]
[385058609,1757657837358,-267.63706528,0.00013815,2]
[385058610,1757657837407,-212.36293472,0.00013815,2]
[385058611,1757657837437,-482.38843263,0.00013815,2]
[385058612,1757657837466,-481.46548439,0.00013815,2]
[385058613,1757657837493,-480.0,0.00013815,2]
[385058614,1757657837524,-480.0,0.00013815,2]
[385058615,1757657837642,-488.10743984,0.00013815,2]
[385058616,1757657837678,-480.0,0.00013815,2]
[385058617,1757657837708,-480.0,0.00013815,2]
[385058618,1757657837738,-480.0,0.00013816,2]
[385058619,1757657837767,-480.0,0.00013816,2]
[385058620,1757657837795,-431.36141684,0.00013816,2]
[385058625,1757657969596,385.894851,0.00013699,2]
[385058626,1757657992904,666.0,0.00012817,2]
[385058627,1757657994778,2549.61618136,0.00013425,2]
[385058628,1757658063460,607.93,0.00012329,2]
[385058629,1757658073849,782.94,0.00012329,2]
[385058630,1757658075565,2030.296672,0.00013671,2]
[385058631,1757658081351,918.694463,0.00012816,2]
[385058632,1757658084269,836.67,0.00012329,2]
[385058633,1757658084487,2030.296672,0.00013671,2]
[385058634,1757658094701,1085.28,0.00012329,2]
[385058635,1757658100073,2030.296672,0.00013671,2]
[385058636,1757658105128,1067.28,0.00012329,2]
[385058637,1757658108077,2030.296672,0.00013671,2]
[385058638,1757658114205,164.915408,6.479e-05,2]
[385058639,1757658114411,164.915408,0.00012958,2]
[385058642,1757658115515,944.96,0.00012329,2]
[385058653,1757658124111,2030.296672,0.00013671,2]
[385058654,1757658126175,866.01,0.00012329,2]
[385058655,1757658132186,1312.09941503,0.00013671,2]
[385058656,1757658136574,751.43,0.00012329,2]
[385058659,1757658146968,626.19,0.00012329,2]
[385058660,1757658148085,2030.296672,0.00013671,2]
[385058662,1757658157355,521.83,0.00012329,2]
[385058664,1757658168040,434.86,0.00012329,2]
[385058665,1757658171617,2176.3606714,0.00013579,2]
[385058667,1757658178398,362.38,0.00012329,2]
[385058669,1757658189040,301.98,0.00012329,2]
[385058670,1757658194683,2176.3606714,0.00013579,2]
[385058671,1757658199680,251.65,0.00012329,2]
[385058672,1757658202650,2176.3606714,0.00013579,2]
[385058673,1757658210107,209.71,0.00012329,2]
[385058674,1757658218097,2176.3606714,0.00013579,2]
[385058675,1757658220499,174.76,0.00012329,2]
[385058676,1757658226053,15996.6393286,0.00013579,2]
[385058677,1757658230914,873.82,0.00012329,2]
[385058678,1757658241360,854.56,0.00012329,2]
[385058679,1757658242382,32990.34826848,0.00013579,2]
[385058680,1757658250244,9259.5720266,0.00013579,2]
[385058681,1757658251790,1294.85,0.00012329,2]
[385058682,1757658262453,1292.3,0.00012329,2]
[385058683,1757658265694,300.0,0.00013578,2]
[385058686,1757658273137,1076.92,0.00012329,2]
[385058687,1757658281267,904.00575971,0.00013578,2]
[385058688,1757658284112,897.43,0.00012329,2]
[385058689,1757658289311,904.00575971,0.00013578,2]
[385058690,1757658297299,904.00575971,0.00013578,2]
[385058691,1757658305285,747.86,0.00012329,2]
[385058692,1757658305443,904.00575971,0.00013578,2]
[385058705,1757658313654,904.00575971,0.00013578,2]
[385058707,1757658315704,623.22,0.00012329,2]
[385058710,1757658322779,904.00575971,0.00013578,2]
[385058711,1757658326148,519.35,0.00012329,2]
[385058715,1757658331334,891.98848058,0.00013578,2]
[385058718,1757658336578,432.79,0.00012329,2]
[385058720,1757658339246,904.00575971,0.00013578,2]
[385058726,1757658347031,360.66,0.00012329,2]
[385058727,1757658348229,904.00575971,0.00013578,2]
[385058730,1757658357590,300.55,0.00012329,2]
[385058735,1757658365517,904.00575971,0.00013578,2]
[385058738,1757658368045,250.46,0.00012329,2]
[385058740,1757658368389,151.0,0.000137,2]
[385058741,1757658373763,300.0,0.00013577,2]
[385058745,1757658378513,208.71,0.00012329,2]
[385058750,1757658388898,173.93,0.00012329,2]
[385058753,1757658389798,300.0,0.00013577,2]
[385058761,1757658397939,300.0,0.00013577,2]
[385058762,1757658399293,869.66,0.00012329,2]
[385058767,1757658404391,152.49321819,0.00013615,2]
[385058782,1757658413365,300.0,0.00013577,2]
[385058789,1757658422018,300.0,0.00013577,2]
[385058798,1757658437494,1500.0,0.00013577,2]
[385058803,1757658446188,1500.0,0.00013577,2]
[385058815,1757658462392,1500.0,0.00013577,2]
[385058823,1757658470304,1500.0,0.00013577,2]
[385058833,1757658485962,1500.0,0.00013577,2]
[385058836,1757658492318,418.23482123,0.00010618,2]
[385058837,1757658492438,2176.3606714,0.00013616,2]
[385058839,1757658493944,1500.0,0.00013577,2]
[385058840,1757658494244,11467.61227021,0.000125,2]
[385058843,1757658503198,1000.0,0.000136,2]
[385058845,1757658507433,284.80389159,0.0001,2]
[385058847,1757658509443,1500.0,0.00013577,2]
[385058848,1757658514947,49787.40061892,0.00013,2]
[385058850,1757658516748,1000.0,0.0001,2]
[385058851,1757658517365,15214.49648369,0.00013577,2]
[385058853,1757658521944,9490.8,0.0001,2]
[385058855,1757658523228,9095.3993281,0.0001,2]
[385058856,1757658523810,1726.5855053,0.0001,2]
[385058858,1757658530969,200.794409,0.00013303,2]
[385058859,1757658531277,795.19807914,0.00013304,2]
[385058861,1757658532062,1000.0,0.000136,3]
[385058862,1757658533326,22047.92106153,0.00013577,2]
[385058868,1757658550014,300.0,0.00013576,2]
[385058871,1757658556044,180.96235253,0.00027397,120]